[Event "23rd ETCC Women 2021"]
[Site "Catez"]
[Date "2021.11.20"]
[Round "8.2"]
[White "Lagno, Kateryna"]
[Black "Osmak, Iulija"]
[Result "1-0"]
[ECO "B12"]
[WhiteElo "2550"]
[BlackElo "2423"]
[Annotator "ChessBase"]
[PlyCount "81"]
[EventDate "2021.11.08"]
[EventType "team-tourn"]
[EventCountry "SLO"]
[SourceTitle "playchess.com"]
[Source "ChessBase"]
[SourceQuality "1"]
[WhiteTeam "Russia"]
[BlackTeam "Ukraine"]
[WhiteTeamCountry "RUS"]
[BlackTeamCountry "UKR"]
[TimeControl "40/5400+30:1800+30"]

1. e4 {[%emt 0:00:02]} c6 {[%emt 0:00:06]} 2. d4 {[%emt 0:00:13]} d5 {[%emt 0:
00:03]} 3. e5 {[%emt 0:00:06]} Bf5 {[%emt 0:00:37]} 4. Nd2 {[%emt 0:00:10]} e6
{[%emt 0:00:49]} 5. Nb3 {[%emt 0:00:07]} Nd7 {[%emt 0:01:47]} 6. Nf3 {[%emt 0:
00:20]} Be4 {[%emt 0:00:34]} 7. Be2 {[%emt 0:04:23]} c5 {[%emt 0:01:52]} 8. c3
{[%emt 0:13:55]} Ne7 {[%emt 0:09:38]} 9. Nxc5 {[%emt 0:02:52]} Nxc5 {[%emt 0:
00:11]} 10. dxc5 {[%emt 0:00:02]} Nc6 {[%emt 0:01:58]} 11. Be3 {[%emt 0:01:19]}
Bxf3 {[%emt 0:01:48]} 12. Bxf3 {[%emt 0:05:19]} Nxe5 {[%emt 0:01:57]} 13. Be2 {
[%emt 0:00:09]} Be7 {[%emt 0:01:18]} 14. Bb5+ {[%emt 0:10:43]} Nc6 {[%emt 0:07:
29]} 15. O-O {[%emt 0:04:03]} O-O {[%emt 0:01:20]} 16. Qe2 {[%emt 0:13:00]} Qc7
{[%emt 0:11:24]} 17. Rad1 {[%emt 0:02:11]} Rad8 {[%emt 0:00:21]} 18. f4 {
[%emt 0:13:43]} Bf6 {[%emt 0:07:41]} 19. Bxc6 {[%emt 0:04:52]} bxc6 {[%emt 0:
13:28]} 20. Bd4 {[%emt 0:00:07]} Qe7 {[%emt 0:02:07]} 21. b4 {[%emt 0:00:36]}
Rb8 {[%emt 0:00:37]} 22. Be5 {[%emt 0:01:55]} Bxe5 {[%emt 0:00:17]} 23. fxe5 {
[%emt 0:00:07]} a5 {[%emt 0:11:12]} 24. a3 {[%emt 0:00:04]} Ra8 {[%emt 0:00:34]
} 25. Rd3 {[%emt 0:00:33]} Ra7 {[%emt 0:01:31]} 26. Qh5 {[%emt 0:03:44]} f5 {
[%emt 0:11:26]} 27. exf6 {[%emt 0:00:04]} gxf6 {[%emt 0:00:33]} 28. Rg3+ {
[%emt 0:02:14]} Kh8 {[%emt 0:00:04]} 29. Qh6 {[%emt 0:00:18]} Qf7 {[%emt 0:02:
46]} 30. Rg6 {[%emt 0:00:20]} f5 {[%emt 0:02:50]} 31. Rxe6 {[%emt 0:00:09]}
axb4 {[%emt 0:00:04]} 32. axb4 {[%emt 0:00:23]} Ra2 {[%emt 0:01:36]} 33. Rxc6 {
[%emt 0:04:21]} Rg8 {[%emt 0:00:47]} 34. g3 {[%emt 0:00:17]} Re8 {[%emt 0:03:
09]} 35. Rf6 {[%emt 0:00:47]} Qg7 {[%emt 0:01:51]} 36. Qxg7+ {[%emt 0:00:10]}
Kxg7 {[%emt 0:00:03]} 37. R6xf5 {[%emt 0:00:03]} Rc2 {[%emt 0:00:40]} 38. R1f2
{[%emt 0:00:52]} Rxc3 {[%emt 0:00:15]} 39. Rxd5 {[%emt 0:00:40]} Rb3 {[%emt 0:
00:20]} 40. Rd4 {[%emt 0:02:12]} Re1+ {[%emt 0:00:55]} 41. Kg2 {[%emt 0:30:09]}
1-0

[Event "23rd ETCC Women 2021"]
[Site "Catez"]
[Date "2021.11.20"]
[Round "8.3"]
[White "Buksa, Nataliya"]
[Black "Shuvalova, Polina"]
[Result "1/2-1/2"]
[ECO "C90"]
[WhiteElo "2410"]
[BlackElo "2515"]
[Annotator "ChessBase"]
[PlyCount "79"]
[EventDate "2021.11.08"]
[EventType "team-tourn"]
[EventCountry "SLO"]
[SourceTitle "playchess.com"]
[Source "ChessBase"]
[SourceQuality "1"]
[WhiteTeam "Ukraine"]
[BlackTeam "Russia"]
[WhiteTeamCountry "UKR"]
[BlackTeamCountry "RUS"]
[TimeControl "40/5400+30:1800+30"]

1. e4 {[%emt 0:00:10]} e5 {[%emt 0:00:10]} 2. Nf3 {[%emt 0:00:05]} Nc6 {
[%emt 0:00:05]} 3. Bb5 {[%emt 0:00:36]} a6 {[%emt 0:00:06]} 4. Ba4 {[%emt 0:00:
05]} Nf6 {[%emt 0:00:06]} 5. O-O {[%emt 0:00:05]} Be7 {[%emt 0:00:06]} 6. Re1 {
[%emt 0:00:13]} b5 {[%emt 0:00:06]} 7. Bb3 {[%emt 0:00:04]} O-O {[%emt 0:00:06]
} 8. a4 {[%emt 0:00:34]} b4 {[%emt 0:00:08]} 9. a5 {[%emt 0:00:16]} d6 {
[%emt 0:00:29]} 10. c3 {[%emt 0:00:36]} Rb8 {[%emt 0:02:51]} 11. Bc4 {[%emt 0:
00:12]} Be6 {[%emt 0:18:32]} 12. Bxa6 {[%emt 0:10:26]} Ra8 {[%emt 0:01:47]} 13.
Bb5 {[%emt 0:17:11]} Nxa5 {[%emt 0:05:16]} 14. cxb4 {[%emt 0:03:54]} Nb3 {
[%emt 0:06:47]} 15. Rxa8 {[%emt 0:00:05]} Qxa8 {[%emt 0:00:05]} 16. Nc3 {
[%emt 0:00:02]} Rb8 {[%emt 0:18:37]} 17. d4 {[%emt 0:11:16]} Nxd4 {[%emt 0:13:
23]} 18. Nxd4 {[%emt 0:01:54]} exd4 {[%emt 0:00:03]} 19. Qxd4 {[%emt 0:00:05]}
Qb7 {[%emt 0:01:58]} 20. h3 {[%emt 0:08:26]} h6 {[%emt 0:00:52]} 21. Bd2 {
[%emt 0:14:52]} c6 {[%emt 0:05:51]} 22. Bf1 {[%emt 0:00:04]} Qxb4 {[%emt 0:02:
44]} 23. Qxb4 {[%emt 0:01:26]} Rxb4 {[%emt 0:00:04]} 24. Nd5 {[%emt 0:00:08]}
Nxd5 {[%emt 0:03:18]} 25. exd5 {[%emt 0:00:10]} Rd4 {[%emt 0:00:27]} 26. Bxh6 {
[%emt 0:09:20]} Rxd5 {[%emt 0:01:47]} 27. Be3 {[%emt 0:00:04]} Ra5 {[%emt 0:02:
44]} 28. b4 {[%emt 0:00:40]} Ra8 {[%emt 0:00:42]} 29. Rc1 {[%emt 0:00:43]} Rb8
{[%emt 0:02:02]} 30. Rxc6 {[%emt 0:03:13]} Rxb4 {[%emt 0:00:04]} 31. Bd3 {
[%emt 0:02:55]} g6 {[%emt 0:02:00]} 32. Kf1 {[%emt 0:02:39]} Ra4 {[%emt 0:00:
49]} 33. Rb6 {[%emt 0:02:57]} Kg7 {[%emt 0:00:59]} 34. Ra6 {[%emt 0:05:52]} Rb4
{[%emt 0:03:45]} 35. Rb6 {[%emt 0:01:53]} Ra4 {[%emt 0:00:12]} 36. Ra6 {
[%emt 0:00:05]} Rb4 {[%emt 0:00:13]} 37. Bd2 {[%emt 0:04:12]} Rb3 {[%emt 0:00:
36]} 38. Ke2 {[%emt 0:00:05]} d5 {[%emt 0:01:56]} 39. Bc2 {[%emt 0:00:11]} Rb7
{[%emt 0:00:38]} 40. Bc3+ {[%emt 0:00:40]} 1/2-1/2

[Event "23rd ETCC Women 2021"]
[Site "Catez"]
[Date "2021.11.20"]
[Round "8.4"]
[White "Kashlinskaya, Alina"]
[Black "Gaponenko, Inna"]
[Result "1-0"]
[ECO "D20"]
[WhiteElo "2482"]
[BlackElo "2339"]
[Annotator "ChessBase"]
[PlyCount "157"]
[EventDate "2021.11.08"]
[EventType "team-tourn"]
[EventCountry "SLO"]
[SourceTitle "playchess.com"]
[Source "ChessBase"]
[SourceQuality "1"]
[WhiteTeam "Russia"]
[BlackTeam "Ukraine"]
[WhiteTeamCountry "RUS"]
[BlackTeamCountry "UKR"]
[TimeControl "40/5400+30:1800+30"]

1. d4 {[%emt 0:00:03]} d5 {[%emt 0:00:20]} 2. c4 {[%emt 0:00:07]} dxc4 {
[%emt 0:00:56]} 3. e4 {[%emt 0:00:12]} c5 {[%emt 0:06:08]} 4. d5 {[%emt 0:00:
36]} Nf6 {[%emt 0:00:20]} 5. Nc3 {[%emt 0:00:44]} e6 {[%emt 0:00:16]} 6. Bxc4 {
[%emt 0:09:08]} exd5 {[%emt 0:03:28]} 7. Nxd5 {[%emt 0:00:47]} Be6 {[%emt 0:04:
54]} 8. Bg5 {[%emt 0:21:43]} Be7 {[%emt 0:51:07]} 9. Nxe7 {[%emt 0:23:22]} Qxe7
{[%emt 0:08:10]} 10. Bxe6 {[%emt 0:07:22]} Qxe6 {[%emt 0:00:17]} 11. Ne2 {
[%emt 0:00:16]} Nbd7 {[%emt 0:09:53]} 12. O-O {[%emt 0:03:58]} O-O {[%emt 0:02:
15]} 13. Nc3 {[%emt 0:01:18]} Nb6 {[%emt 0:05:49]} 14. Qe2 {[%emt 0:03:28]}
Rfe8 {[%emt 0:00:30]} 15. Rfe1 {[%emt 0:02:20]} h6 {[%emt 0:01:26]} 16. Bh4 {
[%emt 0:00:41]} a6 {[%emt 0:01:07]} 17. Rad1 {[%emt 0:00:20]} Rac8 {[%emt 0:01:
12]} 18. f4 {[%emt 0:02:34]} Rc6 {[%emt 0:00:11]} 19. f5 {[%emt 0:03:19]} Qc8 {
[%emt 0:00:07]} 20. Qf3 {[%emt 0:00:34]} Nfd7 {[%emt 0:01:16]} 21. Qg3 {
[%emt 0:07:44]} Ne5 {[%emt 0:00:16]} 22. Nd5 {[%emt 0:00:19]} Kh7 {[%emt 0:00:
47]} 23. Ne7 {[%emt 0:02:16]} Rxe7 {[%emt 0:00:05]} 24. Bxe7 {[%emt 0:00:01]}
f6 {[%emt 0:00:05]} 25. Rd8 {[%emt 0:04:56]} Qc7 {[%emt 0:00:04]} 26. Re8 {
[%emt 0:00:06]} Nbc4 {[%emt 0:01:43]} 27. Rd1 {[%emt 0:00:24]} Nd6 {[%emt 0:00:
40]} 28. Bxd6 {[%emt 0:01:59]} Rxd6 {[%emt 0:00:04]} 29. Rxd6 {[%emt 0:00:10]}
Qxd6 {[%emt 0:00:01]} 30. h3 {[%emt 0:00:37]} Qd7 {[%emt 0:01:18]} 31. Re6 {
[%emt 0:01:00]} Qd4+ {[%emt 0:00:31]} 32. Kh1 {[%emt 0:00:12]} Qd1+ {[%emt 0:
00:26]} 33. Kh2 {[%emt 0:00:01]} Qd7 {[%emt 0:00:20]} 34. b3 {[%emt 0:01:57]}
Qc7 {[%emt 0:00:17]} 35. Re8 {[%emt 0:00:50]} b5 {[%emt 0:00:15]} 36. Kh1 {
[%emt 0:00:43]} c4 {[%emt 0:00:12]} 37. bxc4 {[%emt 0:00:11]} bxc4 {[%emt 0:00:
02]} 38. Qa3 {[%emt 0:00:15]} Qd7 {[%emt 0:01:31]} 39. Ra8 {[%emt 0:02:31]}
Qd1+ {[%emt 0:00:32]} 40. Kh2 {[%emt 0:00:00]} Qd2 {[%emt 0:00:55]} 41. Rc8 {
[%emt 0:08:49]} h5 {[%emt 0:12:42]} 42. Qg3 {[%emt 0:04:50]} Qh6 {[%emt 0:09:
18]} 43. Qh4 {[%emt 0:04:31]} a5 {[%emt 0:03:42]} 44. a4 {[%emt 0:00:12]} g5 {
[%emt 0:04:04]} 45. Qf2 {[%emt 0:05:07]} Qg7 {[%emt 0:01:58]} 46. Qc5 {[%emt 0:
01:46]} Kh6 {[%emt 0:01:21]} 47. Rc7 {[%emt 0:02:25]} Qh8 {[%emt 0:00:14]} 48.
Qe7 {[%emt 0:01:49]} h4 {[%emt 0:00:23]} 49. Kg1 {[%emt 0:02:22]} g4 {[%emt 0:
00:09]} 50. hxg4 {[%emt 0:01:43]} Nxg4 {[%emt 0:00:11]} 51. Rd7 {[%emt 0:01:36]
} Kg5 {[%emt 0:01:05]} 52. Qg7+ {[%emt 0:01:17]} Qxg7 {[%emt 0:00:06]} 53.
Rxg7+ {[%emt 0:00:01]} Kf4 {[%emt 0:00:06]} 54. Kf1 {[%emt 0:00:33]} Ne5 {
[%emt 0:01:47]} 55. Ke2 {[%emt 0:00:23]} Kxe4 {[%emt 0:00:33]} 56. Rh7 {
[%emt 0:00:16]} Kxf5 {[%emt 0:00:27]} 57. Rxh4 {[%emt 0:00:01]} Ke6 {[%emt 0:
00:09]} 58. Rd4 {[%emt 0:00:48]} c3 {[%emt 0:00:52]} 59. Kd1 {[%emt 0:00:12]}
Nd7 {[%emt 0:00:31]} 60. Kc2 {[%emt 0:00:17]} Nc5 {[%emt 0:00:03]} 61. Kxc3 {
[%emt 0:00:23]} Ke5 {[%emt 0:00:03]} 62. Rc4 {[%emt 0:01:49]} Kd5 {[%emt 0:00:
16]} 63. Rh4 {[%emt 0:00:04]} f5 {[%emt 0:00:35]} 64. Kd2 {[%emt 0:00:21]} Ne6
{[%emt 0:00:23]} 65. Ke3 {[%emt 0:00:22]} f4+ {[%emt 0:00:24]} 66. Kf3 {
[%emt 0:00:23]} Kc5 {[%emt 0:00:20]} 67. Rxf4 {[%emt 0:01:57]} Nxf4 68. Kxf4 {
[%emt 0:00:01]} Kb4 {[%emt 0:00:42]} 69. g4 {[%emt 0:00:19]} Kxa4 {[%emt 0:00:
05]} 70. g5 {[%emt 0:00:03]} Kb3 {[%emt 0:00:04]} 71. g6 {[%emt 0:00:02]} a4 {
[%emt 0:00:03]} 72. g7 {[%emt 0:00:02]} a3 {[%emt 0:00:04]} 73. g8=Q+ {[%emt 0:
00:05]} Kb2 {[%emt 0:00:36]} 74. Qg7+ {[%emt 0:00:00]} Kb1 {[%emt 0:00:08]} 75.
Qb7+ {[%emt 0:00:00]} Ka1 {[%emt 0:00:12]} 76. Qc6 {[%emt 0:00:00]} Kb2 {
[%emt 0:00:06]} 77. Qb5+ {[%emt 0:00:00]} Ka1 {[%emt 0:00:07]} 78. Qc5 {
[%emt 0:00:00]} Kb2 {[%emt 0:00:07]} 79. Qb4+ {[%emt 0:00:00]} 1-0

[Event "23rd ETCC Women 2021"]
[Site "Catez"]
[Date "2021.11.20"]
[Round "8.5"]
[White "Tsolakidou, Stavroula"]
[Black "Dzagnidze, Nana"]
[Result "0-1"]
[ECO "D35"]
[WhiteElo "2377"]
[BlackElo "2524"]
[Annotator "ChessBase"]
[PlyCount "104"]
[EventDate "2021.11.08"]
[EventType "team-tourn"]
[EventCountry "SLO"]
[SourceTitle "playchess.com"]
[Source "ChessBase"]
[SourceQuality "1"]
[WhiteTeam "Greece"]
[BlackTeam "Georgia"]
[WhiteTeamCountry "GRE"]
[BlackTeamCountry "GEO"]
[TimeControl "40/5400+30:1800+30"]

1. d4 {[%emt 0:00:04]} Nf6 {[%emt 0:00:08]} 2. c4 {[%emt 0:00:08]} e6 {[%emt 0:
00:09]} 3. Nc3 {[%emt 0:00:22]} d5 {[%emt 0:02:02]} 4. cxd5 {[%emt 0:00:34]}
exd5 {[%emt 0:00:38]} 5. Bg5 {[%emt 0:00:15]} c6 {[%emt 0:00:11]} 6. e3 {
[%emt 0:02:39]} Bf5 {[%emt 0:03:30]} 7. Qf3 {[%emt 0:20:37]} Bg6 {[%emt 0:00:
25]} 8. Bxf6 {[%emt 0:01:36]} gxf6 {[%emt 0:04:26]} 9. Qd1 {[%emt 0:05:52]} Bd6
{[%emt 0:03:34]} 10. Nf3 {[%emt 0:00:36]} Nd7 {[%emt 0:00:58]} 11. Bd3 {
[%emt 0:02:22]} Qe7 {[%emt 0:11:06]} 12. Qc2 {[%emt 0:03:33]} Rg8 {[%emt 0:07:
42]} 13. g3 {[%emt 0:05:13]} Nb6 {[%emt 0:09:02]} 14. Nh4 {[%emt 0:16:27]} Bc7
{[%emt 0:03:07]} 15. b3 {[%emt 0:12:59]} O-O-O {[%emt 0:03:41]} 16. Nf5 {
[%emt 0:04:04]} Qf8 {[%emt 0:02:39]} 17. Ne2 {[%emt 0:02:32]} Kb8 {[%emt 0:00:
19]} 18. Kf1 {[%emt 0:10:28]} Re8 {[%emt 0:06:55]} 19. Rc1 {[%emt 0:00:27]} Nc8
{[%emt 0:08:35]} 20. Nh4 {[%emt 0:05:27]} Nd6 {[%emt 0:03:55]} 21. Nf4 {
[%emt 0:00:09]} Qe7 {[%emt 0:03:51]} 22. Kg2 {[%emt 0:01:23]} Qd7 {[%emt 0:06:
24]} 23. Rhe1 {[%emt 0:01:17]} Re7 {[%emt 0:02:32]} 24. Qd1 {[%emt 0:02:15]}
Ne4 {[%emt 0:03:53]} 25. Rf1 {[%emt 0:00:50]} Ng5 {[%emt 0:02:19]} 26. Kh1 {
[%emt 0:00:09]} Bxf4 {[%emt 0:05:02]} 27. exf4 {[%emt 0:00:02]} Bxd3 {[%emt 0:
00:09]} 28. Qxd3 {[%emt 0:00:05]} Ne4 {[%emt 0:00:05]} 29. b4 {[%emt 0:01:29]}
Qh3 {[%emt 0:03:28]} 30. a4 {[%emt 0:01:00]} Rge8 {[%emt 0:00:39]} 31. Nf3 {
[%emt 0:00:33]} Nd6 {[%emt 0:00:41]} 32. Ng1 {[%emt 0:00:29]} Qf5 {[%emt 0:00:
41]} 33. Qd1 {[%emt 0:00:30]} h5 {[%emt 0:01:05]} 34. Nf3 {[%emt 0:00:18]} Re2
{[%emt 0:00:22]} 35. Kg1 {[%emt 0:00:38]} Rb2 {[%emt 0:02:22]} 36. b5 {[%emt 0:
00:10]} cxb5 {[%emt 0:00:09]} 37. axb5 {[%emt 0:00:03]} Nxb5 {[%emt 0:00:49]}
38. Qa4 {[%emt 0:01:20]} a6 {[%emt 0:00:23]} 39. Qd1 {[%emt 0:00:30]} Ree2 {
[%emt 0:00:33]} 40. Rc5 {[%emt 0:00:33]} Qe4 {[%emt 0:00:42]} 41. Qc1 {[%emt 0:
19:19]} Rbc2 {[%emt 0:03:37]} 42. Rxc2 {[%emt 0:01:50]} Rxc2 {[%emt 0:00:08]}
43. Qe3 {[%emt 0:01:38]} Rc3 {[%emt 0:03:47]} 44. Qxe4 {[%emt 0:02:27]} dxe4 {
[%emt 0:00:02]} 45. Nd2 {[%emt 0:00:15]} f5 {[%emt 0:00:05]} 46. d5 {[%emt 0:
00:42]} Nd6 {[%emt 0:08:46]} 47. Re1 {[%emt 0:01:00]} a5 {[%emt 0:02:00]} 48.
Ra1 {[%emt 0:01:34]} Rd3 {[%emt 0:01:27]} 49. Nf1 {[%emt 0:00:13]} Nc4 {
[%emt 0:00:12]} 50. Kg2 {[%emt 0:03:24]} b5 {[%emt 0:00:29]} 51. Kh3 {[%emt 0:
00:39]} b4 {[%emt 0:01:23]} 52. Kh4 {[%emt 0:01:11]} b3 {[%emt 0:00:15]} 0-1

[Event "23rd ETCC Women 2021"]
[Site "Catez"]
[Date "2021.11.20"]
[Round "8.7"]
[White "Pavlidou, Ekaterini"]
[Black "Arabidze, Meri"]
[Result "0-1"]
[ECO "B14"]
[WhiteElo "2172"]
[BlackElo "2441"]
[Annotator "NA"]
[PlyCount "112"]
[EventDate "2021.11.08"]
[EventType "team-tourn"]
[EventCountry "SLO"]
[SourceTitle "playchess.com"]
[Source "ChessBase"]
[SourceQuality "1"]
[WhiteTeam "Greece"]
[BlackTeam "Georgia"]
[WhiteTeamCountry "GRE"]
[BlackTeamCountry "GEO"]
[TimeControl "40/5400+30:1800+30"]

1. d4 {[%emt 0:00:20]} Nf6 {[%emt 0:00:10]} 2. c4 {[%emt 0:00:09]} e6 {[%emt 0:
00:07]} 3. Nc3 {[%emt 0:00:19]} Bb4 {[%emt 0:00:08]} 4. e3 {[%emt 0:00:12]} c5
{[%emt 0:00:27]} 5. Bd2 {[%emt 0:02:50]} cxd4 {[%emt 0:01:57]} 6. exd4 {
[%emt 0:00:09]} O-O {[%emt 0:02:37]} 7. Nf3 {[%emt 0:03:20]} d5 {[%emt 0:00:27]
} 8. a3 {[%emt 0:03:53]} Bxc3 {[%emt 0:04:03]} 9. Bxc3 {[%emt 0:00:21]} Ne4 {
[%emt 0:05:52]} 10. Rc1 {[%emt 0:00:50]} Nc6 {[%emt 0:05:01]} 11. Bd3 {[%emt 0:
03:35]} Nxc3 {[%emt 0:06:09]} 12. Rxc3 {[%emt 0:00:48]} dxc4 {[%emt 0:03:17]}
13. Bxc4 {[%emt 0:02:26]} Ne7 {[%emt 0:03:03]} 14. O-O {[%emt 0:10:29]} Nd5 {
[%emt 0:08:55]} 15. Bxd5 {[%emt 0:12:50]} Qxd5 {[%emt 0:01:39]} 16. Rc5 {
[%emt 0:00:27]} Qd6 {[%emt 0:02:59]} 17. Qc2 {[%emt 0:01:28]} h6 {[%emt 0:14:
30]} 18. Rc1 {[%emt 0:05:16]} Bd7 {[%emt 0:01:20]} 19. Ne5 {[%emt 0:04:16]}
Rad8 {[%emt 0:03:18]} 20. Qe4 {[%emt 0:09:50]} b6 {[%emt 0:04:25]} 21. Rc7 {
[%emt 0:02:31]} Rc8 {[%emt 0:01:41]} 22. Qb7 {[%emt 0:12:22]} Rxc7 {[%emt 0:14:
27]} 23. Qxc7 {[%emt 0:00:29]} Qxc7 {[%emt 0:00:18]} 24. Rxc7 {[%emt 0:00:07]}
Rc8 {[%emt 0:00:02]} 25. Rc3 {[%emt 0:02:54]} Rd8 {[%emt 0:03:37]} 26. h3 {
[%emt 0:02:57]} Be8 {[%emt 0:00:11]} 27. Rc7 {[%emt 0:01:37]} a5 {[%emt 0:03:
29]} 28. Nf3 {[%emt 0:06:17]} a4 {[%emt 0:00:49]} 29. Kf1 {[%emt 0:03:50]} Rd5
{[%emt 0:01:59]} 30. Ke1 {[%emt 0:06:50]} Rb5 {[%emt 0:01:47]} 31. Rc2 {
[%emt 0:00:26]} f6 {[%emt 0:01:01]} 32. Kd2 {[%emt 0:00:47]} Bg6 {[%emt 0:01:
55]} 33. Rc8+ {[%emt 0:00:04]} Kh7 {[%emt 0:00:05]} 34. Kc1 {[%emt 0:00:06]}
Be4 {[%emt 0:00:51]} 35. Re8 {[%emt 0:01:19]} Bxf3 {[%emt 0:04:25]} 36. gxf3 {
[%emt 0:00:02]} Rh5 {[%emt 0:00:56]} 37. Rxe6 {[%emt 0:00:06]} Rxh3 {[%emt 0:
00:01]} 38. Re3 {[%emt 0:02:24]} Rh5 {[%emt 0:00:34]} 39. Kc2 {[%emt 0:00:25]}
Rb5 {[%emt 0:00:42]} 40. Rd3 {[%emt 0:00:38]} Rd5 {[%emt 0:00:19]} 41. Kc3 {
[%emt 0:03:23]} b5 {[%emt 0:02:35]} 42. Rd1 {[%emt 0:13:00]} Kg6 {[%emt 0:04:
36]} 43. Rg1+ {[%emt 0:03:11]} Kf7 {[%emt 0:03:25]} 44. Kd3 {[%emt 0:00:47]} h5
{[%emt 0:04:47]} 45. Ke4 {[%emt 0:02:25]} Rg5 {[%emt 0:01:37]} 46. Rc1 {
[%emt 0:01:59]} h4 {[%emt 0:02:39]} 47. f4 {[%emt 0:01:42]} Rh5 {[%emt 0:00:29]
} 48. Kf3 {[%emt 0:03:37]} h3 {[%emt 0:02:18]} 49. Kg3 {[%emt 0:00:59]} h2 {
[%emt 0:01:22]} 50. Rh1 {[%emt 0:00:03]} Ke6 {[%emt 0:00:14]} 51. Rxh2 {
[%emt 0:03:51]} Rxh2 {[%emt 0:00:18]} 52. Kxh2 {[%emt 0:00:05]} Kd5 {[%emt 0:
00:04]} 53. Kg3 {[%emt 0:01:07]} Kxd4 {[%emt 0:00:15]} 54. f3 {[%emt 0:00:45]}
Kc4 {[%emt 0:00:23]} 55. Kg4 {[%emt 0:00:21]} Kb3 {[%emt 0:00:06]} 56. Kf5 {
[%emt 0:00:14]} Kxb2 {[%emt 0:00:05]} 0-1

[Event "23rd ETCC Women 2021"]
[Site "Catez"]
[Date "2021.11.20"]
[Round "8.8"]
[White "Melia, Salome"]
[Black "Christodoulaki, Antonia"]
[Result "1/2-1/2"]
[ECO "C11"]
[WhiteElo "2371"]
[BlackElo "2075"]
[Annotator "NA"]
[PlyCount "120"]
[EventDate "2021.11.08"]
[EventType "team-tourn"]
[EventCountry "SLO"]
[SourceTitle "playchess.com"]
[Source "ChessBase"]
[SourceQuality "1"]
[WhiteTeam "Georgia"]
[WhiteTeamCountry "GEO"]
[TimeControl "40/5400+30:1800+30"]

1. e4 {[%emt 0:00:04]} e6 {[%emt 0:00:06]} 2. d4 {[%emt 0:00:05]} d5 {[%emt 0:
00:04]} 3. Nc3 {[%emt 0:00:35]} Nf6 {[%emt 0:00:08]} 4. e5 {[%emt 0:00:04]}
Nfd7 {[%emt 0:00:05]} 5. f4 {[%emt 0:00:04]} c5 {[%emt 0:00:09]} 6. Nf3 {
[%emt 0:00:03]} Nc6 {[%emt 0:00:06]} 7. Be3 {[%emt 0:00:16]} Be7 {[%emt 0:00:
06]} 8. dxc5 {[%emt 0:03:53]} O-O {[%emt 0:02:09]} 9. Qd2 {[%emt 0:02:31]} Qa5
{[%emt 0:01:28]} 10. a3 {[%emt 0:03:29]} Bxc5 {[%emt 0:04:44]} 11. Nd4 {
[%emt 0:04:58]} Nxd4 {[%emt 0:12:52]} 12. Bxd4 {[%emt 0:00:06]} Bxd4 {[%emt 0:
01:17]} 13. Qxd4 {[%emt 0:00:02]} Qb6 {[%emt 0:00:49]} 14. O-O-O {[%emt 0:02:
28]} Qxd4 {[%emt 0:09:12]} 15. Rxd4 {[%emt 0:00:03]} f6 {[%emt 0:11:53]} 16.
exf6 {[%emt 0:00:24]} Nxf6 {[%emt 0:00:07]} 17. g3 {[%emt 0:06:05]} Bd7 {
[%emt 0:03:10]} 18. Bg2 {[%emt 0:02:26]} Rac8 {[%emt 0:07:39]} 19. Re1 {
[%emt 0:02:35]} Rfe8 {[%emt 0:04:22]} 20. Bf3 {[%emt 0:04:59]} Kf8 {[%emt 0:07:
30]} 21. Re3 {[%emt 0:08:35]} Bc6 {[%emt 0:05:22]} 22. h4 {[%emt 0:08:32]} h5 {
[%emt 0:07:08]} 23. Nd1 {[%emt 0:06:47]} Re7 {[%emt 0:06:26]} 24. Nf2 {[%emt 0:
03:34]} Be8 {[%emt 0:01:20]} 25. c3 {[%emt 0:11:57]} Bg6 {[%emt 0:03:42]} 26.
Nh3 {[%emt 0:00:04]} Bf5 {[%emt 0:03:20]} 27. Ng5 {[%emt 0:00:16]} Ke8 {
[%emt 0:03:08]} 28. Bd1 {[%emt 0:03:22]} Kd7 {[%emt 0:01:18]} 29. Nf3 {[%emt 0:
02:23]} Kd6 {[%emt 0:03:47]} 30. Ne5 {[%emt 0:00:51]} g6 {[%emt 0:00:23]} 31.
Rb4 {[%emt 0:11:13]} Rec7 {[%emt 0:00:47]} 32. Bc2 {[%emt 0:01:37]} Ng4 {
[%emt 0:00:51]} 33. Nxg4 {[%emt 0:02:44]} hxg4 {[%emt 0:00:07]} 34. Bxf5 {
[%emt 0:00:15]} gxf5 {[%emt 0:01:16]} 35. Kd2 {[%emt 0:00:45]} Rh8 {[%emt 0:00:
32]} 36. Kd3 {[%emt 0:02:14]} Re8 {[%emt 0:00:29]} 37. Re5 {[%emt 0:01:14]}
Rec8 {[%emt 0:00:05]} 38. Kd2 {[%emt 0:03:46]} Rb8 {[%emt 0:00:35]} 39. Rd4 {
[%emt 0:00:59]} Rbc8 {[%emt 0:00:10]} 40. Re1 {[%emt 0:01:18]} Rc6 {[%emt 0:01:
03]} 41. Re3 {[%emt 0:05:33]} Rc5 {[%emt 0:08:39]} 42. Rb4 {[%emt 0:04:57]}
R8c7 {[%emt 0:01:10]} 43. Re2 {[%emt 0:00:56]} R5c6 {[%emt 0:01:24]} 44. Rh2 {
[%emt 0:01:00]} Rh7 {[%emt 0:00:22]} 45. Kd3 {[%emt 0:00:27]} Rhc7 {[%emt 0:01:
13]} 46. a4 {[%emt 0:05:44]} Rc5 {[%emt 0:04:22]} 47. Rh1 {[%emt 0:00:54]} R5c6
{[%emt 0:00:38]} 48. Rd4 {[%emt 0:11:24]} Rc8 {[%emt 0:01:48]} 49. Kd2 {
[%emt 0:00:22]} R8c7 {[%emt 0:00:33]} 50. Re1 {[%emt 0:00:57]} Rb6 {[%emt 0:02:
23]} 51. Kc2 {[%emt 0:01:25]} Rbc6 {[%emt 0:00:20]} 52. Re3 {[%emt 0:00:47]}
Rb6 {[%emt 0:07:27]} 53. b3 {[%emt 0:00:45]} a5 {[%emt 0:00:15]} 54. Kb2 {
[%emt 0:01:06]} Rbc6 {[%emt 0:01:39]} 55. Rd2 {[%emt 0:00:41]} Rb6 {[%emt 0:01:
56]} 56. Rde2 {[%emt 0:01:41]} Ke7 {[%emt 0:00:58]} 57. Rd2 {[%emt 0:00:52]}
Kf6 {[%emt 0:00:32]} 58. Rd4 {[%emt 0:00:17]} Rbc6 {[%emt 0:00:27]} 59. Rd2 {
[%emt 0:01:17]} Rb6 {[%emt 0:00:25]} 60. Rd4 {[%emt 0:00:03]} Rbc6 {[%emt 0:00:
08]} 1/2-1/2